lending/lending_fUSD_20240926
["ID","MTS","AMOUNT","RATE_DAILY","PERIOD"]
[339216308,1727351438295,-150.0,0.00012877,2]
[339216309,1727351438305,-150.0,0.00012877,2]
[339216310,1727351438315,-151.64,0.00012889,2]
[339216311,1727351438324,-150.0,0.00012894,2]
[339216312,1727351438334,-608.849645,0.00012895,2]
[339216313,1727351438343,-1647.8506652,0.00012895,2]
[339216314,1727351438354,-287.75929226,0.00012896,2]
[339216315,1727351438363,-500.0,0.00012898,2]
[339216316,1727351438372,-500.0,0.00012898,2]
[339216317,1727351438381,-500.0,0.00012898,2]
[339216318,1727351438391,-1000.0,0.00012898,2]
[339216319,1727351438400,-791.0,0.00012898,2]
[339216320,1727351438409,-61583.27511069,0.00012899,2]
[339216321,1727351438483,-39.40691759,0.00012899,2]
[339216322,1727351438494,-298.25,0.00012899,2]
[339216323,1727351438506,-1886.15864721,0.00012899,2]
[339216324,1727351438517,-308.66866659,0.00012899,2]
[339216325,1727351438532,-1682.0427743,0.00012899,2]
[339216326,1727351438551,-1073.47446869,0.00012899,2]
[339216327,1727351439414,-510.8948554,0.00012255,2]
[339216328,1727351439423,-255.94213555,0.00012899,2]
[339216329,1727351439520,-114187.66437191,0.00012899,2]
[339216330,1727351439629,-263.315,0.00012899,2]
[339216366,1727351442483,-21220.78577,0.00012899,2]
[339216367,1727351442495,-34426.799998,0.00012899,2]
[339216368,1727351442506,-344.3908417,0.00012899,2]
[339216369,1727351442537,-464.504,0.00012899,2]
[339216370,1727351442548,-1326.30959715,0.00012899,2]
[339216371,1727351442560,-392.29490377,0.00012899,2]
[339216372,1727351442573,-8140.2985015,0.00012899,2]
[339216373,1727351442585,-1490.79089986,0.00012899,2]
[339216374,1727351442596,-772.82854254,0.00012899,2]
[339216375,1727351442607,-6655.27794624,0.00012899,2]
[339216376,1727351442618,-680.3546727,0.00012899,2]
[339216377,1727351442630,-764.825,0.00012899,2]
[339216378,1727351442645,-1806.49803386,0.00012899,2]
[339216379,1727351442656,-2500.0,0.00012899,2]
[339216380,1727351442672,-700.1734372,0.00012899,2]
[339216381,1727351442689,-155067.68197492,0.00012899,2]
[339216382,1727351442699,-533.54521176,0.00012899,2]
[339216383,1727351442710,-214510.82570771,0.000129,2]
[339216384,1727351442720,-1502.53977009,0.000129,2]
[339216385,1727351442729,-320.835,0.000129,2]
[339216386,1727351442739,-558.0,0.000129,2]
[339216387,1727351442749,-272.035,0.000129,2]
[339216388,1727351442758,-285.663,0.000129,2]
[339216389,1727351442767,-164.0,0.000129,2]
[339216390,1727351442776,-150.0,0.000129,2]
[339216391,1727351442786,-164.35,0.000129,2]
[339216392,1727351442798,-288.319,0.000129,2]
[339216393,1727351442808,-152.37,0.000129,2]
[339216394,1727351442820,-13492.0,0.000129,2]
[339216395,1727351442829,-156.512,0.000129,2]
[339216396,1727351442839,-250.0,0.000129,2]
[339216397,1727351442848,-151.5,0.000129,2]
[339216398,1727351442858,-1081.0,0.000129,2]
[339216399,1727351442867,-614928.88213285,0.000129,2]
[339216400,1727351442878,-438.829329,0.000129,2]
[339216401,1727351442890,-261.4769987,0.000129,2]
[339216402,1727351442901,-12611.58875453,0.000129,2]
[339216403,1727351442912,-294.14994472,0.000129,2]
[339216404,1727351442924,-11886.30117644,0.000129,2]
[339216408,1727351443142,-16142.18961055,0.000129,2]
[339216409,1727351443158,-802.54792663,0.000129,2]
[339216410,1727351443169,-2396.5336603,0.000129,2]
[339216411,1727351443181,-1041.4084361,0.000129,2]
[339216412,1727351443200,-5965.0,0.000129,2]
[339216413,1727351443211,-2320.0,0.000129,2]
[339216417,1727351445436,-3358.77699819,0.000129,2]
[339216418,1727351445489,-291.09122005,0.000129,2]
[339216419,1727351445543,-3871.59662795,0.000129,2]
[339216420,1727351445555,-344.831931,0.000129,2]
[339216421,1727351445597,-470.61999998,0.000129,2]
[339216422,1727351445608,-281.818872,0.000129,2]
[339216423,1727351445651,-300.0,0.000129,2]
[339216424,1727351445661,-1516.08396786,0.000129,2]
[339216425,1727351445673,-4336.80998317,0.000129,2]
[339216426,1727351445706,-555.78324608,0.000129,2]
[339216427,1727351445718,-389.63124367,0.000129,2]
[339216428,1727351445729,-264.208,0.000129,2]
[339216429,1727351445740,-2570.41893268,0.000129,2]
[339216430,1727351445914,-6019.73037992,0.000129,2]
[339216431,1727351445934,-628.83326072,0.000129,2]
[339216432,1727351445945,-4810.0402177,0.000129,2]
[339216433,1727351479478,500.0,0.00010164,2]
[339216434,1727351538451,150.0,0.0001389,30]
[339216435,1727351634975,197.72,0.00010012,2]
[339216436,1727351663191,151.28128521,0.0001,2]
[339216438,1727351831206,154.26,0.00010959,2]
[339216439,1727352015450,-2870.7902,0.00011168,2]
[339216440,1727352015472,-500.0,0.00011534,2]
[339216441,1727352015494,-400.0,0.0001188,2]
[339216442,1727352015520,-567.58,0.00011906,2]
[339216443,1727352015542,-250.0,0.00011922,2]
[339216444,1727352015563,-250.0,0.00011947,2]
[339216445,1727352024732,4756.3482,0.00011168,2]
[339216446,1727352027217,-197.72,0.00012276,2]
[339216447,1727352027238,-150.0,0.000123,2]
[339216448,1727352041486,-299.0,0.00012643,2]
[339216449,1727352041507,-183.0,0.00012648,2]
[339216450,1727352041531,-15204.29,0.00012649,2]
[339216451,1727352041552,-585.63,0.00012727,2]
[339216452,1727352041574,-150.0,0.00012728,2]
[339216453,1727352041597,-150.0,0.00012728,2]
[339216454,1727352041619,-150.0,0.00012782,2]
[339216455,1727352041639,-5783.3745,0.00012798,2]
[339216456,1727352041659,-7471.0,0.00012799,2]
[339216457,1727352041679,-1023.7055,0.00012799,2]
[339216458,1727352062916,500.0,0.00010164,2]
[339216459,1727352094859,500.0,9.068e-05,2]
[339216460,1727352168523,177.94,0.00010008,2]
[339216461,1727352185407,150.0,0.0001389,30]
[339216471,1727352386129,231.28,0.00010959,2]
[339216472,1727352557883,-150.0,0.00011589,2]
[339216473,1727352557906,-179.1312418,0.00011589,2]
[339216474,1727352557932,-261.94129289,0.00011589,2]
[339216475,1727352557955,-150.0,0.00011589,2]
[339216476,1727352557978,-2000.0,0.00011706,2]
[339216477,1727352557999,-172.97,0.00011756,2]
[339216478,1727352558021,-200.0,0.00011802,2]
[339216479,1727352558044,-500.0,0.00011808,2]
[339216480,1727352558067,-5489.6825,0.00011838,2]
[339216481,1727352558090,-680.0,0.00011848,2]
[339216482,1727352558113,-498.08,0.00011893,2]
[339216483,1727352558137,-465.4,0.00011915,2]
[339216484,1727352558160,-16997.75176531,0.00011915,2]
[339216485,1727352602333,500.0,0.00010164,2]
[339216495,1727352631595,-1009.71605292,0.00011489,2]
[339216496,1727352631604,-3746.6321228,0.00011915,2]
[339216497,1727352631721,-6.726e-05,0.00011915,2]
[339216498,1727352631756,-321.86997261,0.00011915,2]
[339216499,1727352631863,-2833.74607202,0.00011915,2]
[339216500,1727352631872,-250.0,0.00011925,2]
[339216501,1727352631881,-1053.21,0.00011934,2]
[339216502,1727352631890,-250.0,0.00011938,2]
[339216503,1727352631900,-177.94,0.00012271,2]
[339216504,1727352631909,-731.9984332,0.000127,2]
[339216505,1727352631919,-731.99843312,0.00012711,2]
[339216506,1727352631928,-731.99843312,0.00012722,2]
[339216507,1727352631938,-731.99843312,0.00012733,2]
[339216508,1727352631947,-1617.12,0.00012733,2]
[339216509,1727352631956,-499.99,0.00012733,2]
[339216510,1727352631966,-150.0,0.00012736,2]
[339216511,1727352631976,-731.99843312,0.00012744,2]
[339216512,1727352631985,-731.99843312,0.00012756,2]
[339216513,1727352631994,-731.99843312,0.00012767,2]
[339216514,1727352632003,-731.99843312,0.00012778,2]
[339216515,1727352632013,-731.99843312,0.00012789,2]
[339216516,1727352632022,-1936.6598541,0.00012799,2]
[339216523,1727352637844,-250.0,0.00011836,2]
[339216524,1727352637855,-95.69,0.00012799,2]
[339216525,1727352638160,-29074.3916459,0.00012799,2]
[339216526,1727352638171,-10414.7918,0.00012799,2]
[339216527,1727352638180,-64540.4438,0.00012799,2]
[339216528,1727352638190,-562.569,0.00012799,2]
[339216529,1727352638200,-172.01,0.00012799,2]
[339216530,1727352638211,-250.97825289,0.000128,4]
[339216531,1727352638225,-1124.95641456,0.000128,2]
[339216532,1727352638236,-1375.04358544,0.000128,2]
[339216533,1727352638245,-2500.0,0.000128,2]
[339216534,1727352638255,-164.34819358,0.000128,2]
[339216535,1727352638264,-731.99843312,0.000128,2]
[339216536,1727352638273,-150.0,0.00012823,2]
[339216537,1727352638283,-150.0,0.00012861,2]
[339216538,1727352638291,-500.0,0.00012873,2]
[339216539,1727352638301,-150.0,0.00012875,2]
[339216540,1727352638310,-602.0181942,0.00012895,2]
[339216541,1727352638320,-299.4525504,0.00012895,2]
[339216542,1727352638329,-500.0,0.00012898,2]
[339216543,1727352638339,-582.1136913,0.00012898,2]
[339216544,1727352638349,-1301.82344774,0.00012899,3]
[339216545,1727352638360,-1301.82344774,0.00012899,3]
[339216546,1727352638369,-5834.87845648,0.000129,2]
[339216547,1727352638388,-2009.31606294,0.000129,2]
[339216548,1727352638399,-999.16453639,0.000129,2]
[339216564,1727352639535,-526.775,0.000129,2]
[339216565,1727352639547,-1530.15088773,0.000129,2]
[339216566,1727352639587,-96355.12791032,0.000129,2]
[339216567,1727352639597,-1202.03181607,0.000129,2]
[339216568,1727352639607,-14700.71,0.000129,2]
[339216569,1727352639616,-414677.54263962,0.000129,2]
[339216570,1727352639628,-598.804378,0.000129,2]
[339216571,1727352639747,-1300.0,0.000129,2]
[339216580,1727352642898,-200.0,0.00012065,2]
[339216581,1727352642909,-1639.68086523,0.000129,2]
[339216582,1727352642922,-645.8,0.000129,2]
[339216589,1727352645624,-520.60742562,0.000129,2]
[339216590,1727352645636,-487.94323696,0.000129,2]
[339216591,1727352645729,-690.600222,0.000129,2]
[339216592,1727352645836,-1301.82344774,0.000129,2]
[339216594,1727352774166,150.0,0.0001389,30]
[339216595,1727352813033,160.14,9.992e-05,2]
[339216597,1727352944161,209.31,0.00010959,2]
[339216600,1727353398974,152.13,9.82e-05,2]
[339216602,1727353527774,335.63756283,9.77e-05,2]
[339216605,1727353559445,150.0,0.0001389,30]
[339216624,1727353831717,-853.61856856,0.00011534,2]
[339216625,1727353831729,-146.38143144,0.00011534,2]
[339216626,1727353831738,-250.0,0.00011707,2]
[339216627,1727353831748,-452.42741369,0.00011711,2]
[339216628,1727353831775,-2563.07524274,0.00011711,2]
[339216629,1727353831786,-658.0641077,0.00011711,2]
[339216630,1727353831802,-2672.77323587,0.00011711,2]
[339216631,1727353831818,-455.33,0.00011852,2]
[339216632,1727353831827,-179.7,0.00011871,2]
[339216633,1727353831837,-250.0,0.00011889,2]
[339216634,1727353831847,-249.04,0.00011894,2]
[339216635,1727353831856,-900.0,0.000119,4]
[339216636,1727353831865,-1800.0,0.00012,4]
[339216637,1727353831874,-152.13,0.00012083,2]
[339216638,1727353831884,-499.99,0.000121,2]
[339216639,1727353831893,-1276.38493832,0.000121,4]
[339216640,1727353831943,-286.18192272,0.000121,4]
[339216651,1727353838203,-661.50865098,0.000121,4]
[339216654,1727353839780,-475.92448798,0.000121,4]
[339216655,1727353839790,-151.663262,0.00012113,2]
[339216656,1727353839802,-152.0,0.00012159,3]
[339216657,1727353839811,-1809.49225002,0.000122,4]
[339216658,1727353839892,-1790.50774998,0.000122,4]
[339216659,1727353839901,-4500.0,0.000123,4]
[339216660,1727353839910,-900.0,0.000124,4]
[339216661,1727353839920,-900.0,0.000125,4]
[339216662,1727353839929,-900.0,0.000126,4]
[339216663,1727353839938,-152.0,0.00012664,4]
[339216664,1727353839947,-900.0,0.000127,4]
[339216665,1727353839956,-4308.41918536,0.0001278,2]
[339216666,1727353840005,-389.31495885,0.0001278,2]
[339216789,1727353842792,-1028.28761113,0.000127,2]
[339216790,1727353842958,-1317.925,0.000127,2]
[339216793,1727353845723,-1618.70098408,0.000127,2]
[339216794,1727353845835,-646.69,0.000127,2]
[339216795,1727353845894,-6471.96549998,0.000127,2]
[339216796,1727353845953,-10840.43090481,0.000127,2]
[339216797,1727353845963,-46003.21576186,0.0001278,2]
[339216801,1727353932994,500.0,0.00010164,2]
[339216802,1727353963656,500.0,0.00010164,2]
[339216803,1727353986714,159.88,9.804e-05,2]
[339216804,1727354081443,150.0,0.0001389,30]
[339216805,1727354450968,-500.0,0.00011534,2]
[339216806,1727354450991,-500.0,0.00011534,2]
[339216807,1727354451014,-1000.0,0.00011586,2]
[339216808,1727354451036,-250.0,0.00011593,2]
[339216809,1727354451060,-513.74,0.00011598,2]
[339216810,1727354451082,-516.23,0.00011608,2]
[339216811,1727354451104,-250.0,0.0001163,2]
[339216812,1727354451125,-200.0,0.00011644,2]
[339216813,1727354451146,-885.91,0.00011676,2]
[339216814,1727354451167,-372.8196,0.00011725,2]
[339216815,1727354451188,-499.99,0.00011725,2]
[339216816,1727354451211,-500.0,0.00011774,2]
[339216817,1727354451243,-300.0,0.00011824,2]
[339216818,1727354451270,-17106.4104,0.00011825,2]
[339216819,1727354454787,-6793.5896,0.00011825,2]
[339216820,1727354454809,-172.97,0.00011885,2]
[339216821,1727354454834,-1500.0,0.000119,4]
[339216822,1727354454858,-3000.0,0.00012,4]
[339216823,1727354454881,-150.16,0.00012013,2]
[339216824,1727354454905,-159.88,0.00012067,2]
[339216825,1727354454928,-222.0,0.000121,2]
[339216826,1727354454952,-4500.0,0.000121,4]
[339216827,1727354454976,-175.865698,0.00012113,2]
[339216828,1727354455000,-6100.0,0.000122,4]
[339216829,1727354455023,-3713.90093375,0.00012255,2]
[339216830,1727354455046,-150.0,0.00012299,2]
[339216831,1727354455070,-7600.0,0.000123,4]
[339216832,1727354455093,-1500.0,0.000124,4]
[339216833,1727354455115,-255.0,0.00012451,2]
[339216834,1727354455137,-1500.0,0.000125,4]
[339216835,1727354455159,-333.0,0.0001251,2]
[339216836,1727354455182,-1500.0,0.000126,4]
[339216837,1727354455205,-161.69,0.00012639,2]
[339216838,1727354455227,-388.0,0.00012645,2]
[339216839,1727354455250,-123.94376825,0.0001268,2]
[339216840,1727354455341,-14044.94183175,0.0001268,2]
[339216841,1727354455362,-1274.8817,0.00012699,2]
[339216842,1727354455385,-1500.0,0.000127,4]
[339216843,1727354455407,-455.0,0.00012746,2]
[339216844,1727354455436,-408.999,0.00012754,2]
[339216845,1727354455460,-14930.33,0.0001276,2]
[339216846,1727354455487,-7385.84746825,0.0001278,2]
[339216847,1727354486164,500.0,0.00010164,2]
[339216848,1727354517315,500.0,0.00010164,2]
[339216849,1727354596265,167.69,0.00010959,2]
[339216850,1727354606874,186.57,9.932e-05,2]
[339216851,1727354665130,150.0,0.0001389,30]
[339216855,1727354840616,553.39657311,0.00014,30]
[339216874,1727355031964,-922.33457382,0.00011288,2]
[339216875,1727355031974,-922.33457381,0.00011289,2]
[339216876,1727355031984,-166.7,0.00011368,2]
[339216877,1727355031994,-250.0,0.00011376,2]
[339216878,1727355032003,-200.0,0.00011388,2]
[339216879,1727355032012,-1170.07,0.00011389,2]
[339216880,1727355032022,-166.68,0.00011392,2]
[339216881,1727355032031,-201.78,0.00011392,2]
[339216882,1727355032040,-39.15669425,0.00011409,2]
[339216883,1727355032066,-475.52330575,0.00011409,2]
[339216884,1727355032076,-100.49669425,0.00011439,2]
[339216894,1727355032426,-0.00030643,0.00011439,2]
[339216895,1727355032439,-149.50299932,0.00011439,2]
[339216896,1727355032448,-166.7,0.00011484,2]
[339216897,1727355032458,-4427.63,0.00011494,2]
[339216898,1727355032468,-150.0,0.00011589,2]
[339216899,1727355032478,-150.0,0.00011589,2]
[339216900,1727355032489,-150.0,0.00011589,2]
[339216901,1727355032497,-292.38079082,0.00011589,2]
[339216902,1727355032506,-271.39998586,0.00011589,2]
[339216903,1727355032515,-150.0,0.00011618,2]
[339216904,1727355032524,-150.0,0.00011648,2]
[339216905,1727355032534,-150.0,0.00011677,2]
[339216906,1727355032543,-150.0,0.00011706,2]
[339216907,1727355032553,-150.0,0.00011735,2]
[339216908,1727355032564,-150.0,0.00011765,2]
[339216909,1727355032576,-150.0,0.00011794,2]
[339216910,1727355032588,-150.0,0.00011823,2]
[339216911,1727355032599,-250.0,0.00011835,2]
[339216912,1727355032610,-150.0,0.00011852,2]
[339216913,1727355032622,-166.7,0.00011869,2]
[339216914,1727355032631,-166.7,0.00011869,2]
[339216915,1727355032643,-166.7,0.00011869,2]
[339216916,1727355032654,-500.0,0.00011872,2]
[339216917,1727355032666,-904.01,0.00011872,2]
[339216918,1727355032676,-23900.0,0.00011879,2]
[339216919,1727355032686,-150.0,0.00011882,2]
[339216920,1727355032696,-698.27,0.00011883,2]
[339216921,1727355032706,-150.0,0.00011911,2]
[339216922,1727355032716,-150.0,0.0001194,2]
[339216923,1727355032725,-150.0,0.00011969,2]
[339216924,1727355032735,-150.0,0.00011999,2]
[339216925,1727355032744,-150.0,0.00012028,2]
[339216926,1727355032755,-150.0,0.00012057,2]
[339216927,1727355032764,-150.0,0.00012082,2]
[339216928,1727355032774,-150.0,0.00012087,2]
[339216929,1727355032784,-285.309294,0.00012113,2]
[339216930,1727355032796,-150.0,0.00012116,2]
[339216931,1727355032806,-150.0,0.00012145,2]
[339216932,1727355032817,-150.0,0.00012174,2]
[339216933,1727355032828,-186.57,0.00012196,2]
[339216934,1727355032840,-150.0,0.00012204,2]
[339216935,1727355032851,-150.0,0.00012233,2]
[339216936,1727355032860,-150.0,0.00012262,2]
[339216937,1727355032869,-285.309294,0.00012265,2]
[339216938,1727355032878,-150.0,0.00012291,2]
[339216939,1727355032887,-150.0,0.00012321,2]
[339216940,1727355032897,-150.0,0.0001235,2]
[339216941,1727355032906,-421.94785814,0.00012364,2]
[339216942,1727355032915,-150.0,0.00012379,2]
[339216943,1727355032924,-150.0,0.00012408,2]
[339216944,1727355032934,-285.309294,0.00012416,2]
[339216945,1727355032943,-150.0,0.00012438,2]
[339216946,1727355032953,-167.49,0.00012445,2]
[339216947,1727355032962,-150.0,0.00012467,2]
[339216948,1727355032971,-150.0,0.00012496,2]
[339216949,1727355032981,-150.0,0.00012526,2]
[339216950,1727355032991,-150.0,0.00012555,2]
[339216951,1727355033000,-285.309294,0.00012568,2]
[339216952,1727355033010,-499.99,0.00012568,2]
[339216953,1727355033019,-150.0,0.00012584,2]
[339216954,1727355033028,-150.0,0.00012613,2]
[339216955,1727355033037,-150.0,0.00012643,2]
[339216956,1727355033047,-150.0,0.00012672,2]
[339216957,1727355033056,-150.0,0.00012701,2]
[339216958,1727355033065,-285.309294,0.00012719,2]
[339216959,1727355033074,-150.0,0.0001273,2]
[339216960,1727355033084,-150.0,0.0001276,2]
[339216961,1727355033093,-11538.4618959,0.0001278,2]
[339216962,1727355033105,-3337.9981041,0.0001278,2]
[339216963,1727355033115,-22486.84168323,0.0001278,2]
[339216964,1727355033125,-188.78762459,0.0001278,2]
[339216965,1727355033134,-150.0,0.00012786,2]
[339216966,1727355033144,-150.0,0.00012789,2]
[339216967,1727355033153,-500.0,0.00012796,2]
[339216968,1727355033162,-500.0,0.00012797,2]
[339216969,1727355033171,-500.0,0.00012797,2]
[339216970,1727355033180,-7240.8147,0.000128,2]
[339216971,1727355033190,-304.0767,0.000128,2]
[339216972,1727355033199,-1642.038483,0.000128,2]
[339216973,1727355033208,-23935.88398375,0.000128,2]
[339216974,1727355033217,-231.77,0.000128,2]
[339216975,1727355033226,-154.07595128,0.000128,2]
[339216976,1727355033235,-154.07595128,0.000128,2]
[339216977,1727355033245,-154.07595128,0.000128,2]
[339216978,1727355033253,-154.07595128,0.000128,2]
[339216979,1727355033262,-154.57,0.000128,2]
[339216980,1727355033271,-170.58372367,0.000128,2]
[339216981,1727355033280,-170.58372367,0.000128,2]
[339216982,1727355033289,-170.58372367,0.000128,2]
[339216983,1727355033298,-171.08,0.000128,2]
[339216984,1727355033307,-8383.03100934,0.000128,2]
[339216985,1727355033317,-156.84422594,0.000128,2]
[339216986,1727355033326,-188.3834412,0.000128,2]
[339216987,1727355033336,-2500.0,0.000128,2]
[339216988,1727355033345,-197.48105314,0.00012811,2]
[339216989,1727355033357,-2.51894686,0.00012811,2]
[339216990,1727355033366,-201.78,0.00012816,2]
[339216991,1727355033376,-150.0,0.00012818,2]
[339216992,1727355033385,-150.0,0.00012847,2]
[339216993,1727355033395,-150.0,0.00012859,2]
[339216994,1727355033404,-636.93241277,0.0001287,2]
[339216995,1727355033413,-502.09100106,0.00012873,2]
[339216996,1727355033422,-150.0,0.00012877,2]
[339216997,1727355033432,-150.0,0.00012877,2]
[339216998,1727355033441,-150.0,0.00012877,2]
[339216999,1727355033451,-154.03,0.0001289,2]
[339217000,1727355033460,-264.9642757,0.00012894,2]
[339217001,1727355033470,-211.1795063,0.00012894,2]
[339217002,1727355033479,-3304.04145168,0.00012894,2]
[339217008,1727355038355,-324.58299937,0.00011289,2]
[339217009,1727355038366,-597.75157444,0.00011289,2]
[339217010,1727355038376,-500.0,0.00012873,2]
[339217011,1727355038386,-175.39851817,0.00012894,2]
[339217012,1727355038397,-451.03378972,0.00012894,2]
[339217013,1727355038409,-1180.52477935,0.00012894,2]
[339217015,1727355038421,-1119.53284336,0.00012894,2]
[339217016,1727355038432,-6554.30971465,0.00012894,2]
[339217017,1727355038443,-1751.89351682,0.00012894,2]
[339217018,1727355038454,-1077.76467905,0.00012894,2]
[339217019,1727355038464,-178.0,0.00012897,2]
[339217020,1727355038473,-2144.37888385,0.00012899,3]
[339217021,1727355038485,-1000.0,0.00012899,3]
[339217022,1727355038497,-477.85701832,0.00012899,3]
[339217023,1727355038513,-10903.20915914,0.00012899,3]
[339217024,1727355038525,-291.31748372,0.00012899,3]
[339217025,1727355038537,-360.53268373,0.00012899,3]
[339217026,1727355038548,-572.13343351,0.00012899,3]
[339217027,1727355038570,-295.65162427,0.00012899,3]
[339217034,1727355039995,-1344.25561625,0.00012899,3]
[339217197,1727355043222,-200.0,0.00011976,2]
[339217198,1727355043232,-2160.20726865,0.00012899,3]
[339217199,1727355043241,-1070.50119497,0.00012899,3]
[339217200,1727355043251,-526.5709292,0.00012899,2]
[339217201,1727355043260,-14412.17604875,0.000129,2]
[339217202,1727355043332,-327.30108004,0.000129,2]
[339217203,1727355043347,-35361.72306401,0.000129,2]
[339217204,1727355043356,-961.62545286,0.000129,2]
[339217205,1727355043365,-547137.65148301,0.000129,2]
[339217209,1727355046182,-16163.25,0.000129,2]
[339217210,1727355046194,-1736.29049863,0.000129,2]
[339217211,1727355046237,-5804.82901471,0.000129,2]
[339217213,1727355085583,248249.471447,0.0001,2]
[339217214,1727355126730,219.71,0.00010959,2]
[339217215,1727355197213,180.4,9.863e-05,2]
[339217216,1727355255786,150.0,0.0001389,30]
[339217217,1727355694772,198.84,0.00010959,2]
[339217218,1727355750828,171.38,9.706e-05,2]
[339217219,1727355958441,150.0,0.0001389,30]
[339217308,1727356131511,150.0,0.00011105,2]
[339217318,1727356232109,-797.175,0.0001148,2]
[339217319,1727356232122,-99.03474698,0.0001148,2]
[339217320,1727356232132,-365.61065435,0.0001157,2]
[339217321,1727356232142,-349.52459867,0.0001157,2]
[339217322,1727356232293,-16.08605568,0.0001157,2]
[339217323,1727356232303,-365.61065435,0.0001157,2]
[339217324,1727356232313,-153.34,0.0001157,2]
[339217325,1727356232322,-153.34,0.0001157,2]
[339217326,1727356232331,-300.0,0.00011579,2]
[339217327,1727356232340,-500.0,0.00011579,2]
[339217328,1727356232350,-483.7640103,0.00011579,2]
[339217329,1727356232359,-769.30036229,0.0001158,2]
[339217330,1727356232375,-60674.0972239,0.0001158,2]
[339217331,1727356232393,-1486223.12387499,0.0001158,2]
[339217332,1727356232478,-300.0,0.0001158,2]
[339217333,1727356232493,-689.30241408,0.0001158,2]
[339217338,1727356238486,-500.0,0.00011579,2]
[339217339,1727356238499,-500.0,0.00011579,2]
[339217340,1727356238510,-286.33440104,0.00011579,2]
[339217341,1727356238542,-250.39862259,0.00011579,2]
[339217342,1727356238554,-737.14408655,0.0001158,2]
[339217343,1727356238569,-688.5,0.0001158,2]
[339217344,1727356238585,-4723.52338797,0.0001158,2]
[339217345,1727356238601,-505.37500253,0.0001158,2]
[339217346,1727356238630,-7807.49218914,0.0001158,2]
[339217347,1727356238647,-2002.88798,0.0001158,2]
[339217348,1727356238661,-1003.96522071,0.0001158,2]
[339217349,1727356238675,-362.78211077,0.0001158,2]
[339217350,1727356238688,-1187.62330539,0.0001158,2]
[339217351,1727356238703,-2246.2332207,0.0001158,2]
[339217352,1727356238717,-485.28526725,0.0001158,2]
[339217353,1727356238731,-460.89263148,0.0001158,2]
[339217354,1727356238744,-903.83149778,0.0001158,2]
[339217355,1727356238758,-279.62,0.0001158,2]
[339217356,1727356238772,-14103.48224663,0.0001158,2]
[339217385,1727356240296,-263.53,0.0001158,2]
[339217392,1727356240355,-920.64438249,0.0001158,2]
[339217394,1727356240371,-535.41900002,0.0001158,2]
[339217399,1727356240412,-453.16590618,0.0001158,2]
[339217402,1727356240426,-521.59343028,0.0001158,2]
[339217408,1727356240469,-2809.89847193,0.0001158,2]
[339217410,1727356240483,-93995.86695843,0.0001158,2]
[339217453,1727356243271,-500.0,0.00011573,2]
[339217454,1727356243281,-16789.3992984,0.0001158,2]
[339217459,1727356246418,-12929.4545812,0.0001158,2]
[339217465,1727356324281,2008.0,0.00014,30]
[339217466,1727356375325,193.35,9.451e-05,2]
[339217467,1727356506917,200.0,0.00010777,2]
[339217468,1727356523354,231.83,0.00010799,2]
[339217469,1727356607683,170.68,0.00010752,2]
[339217470,1727356621695,250.0,0.00010752,2]
[339217471,1727356662905,159.12,0.00010857,2]
[339217472,1727356776227,691.92,0.00010795,2]
[339217473,1727356783243,156.47,0.0001082,2]